[Event "*** Titled Tuesday Blitz"]
[Site "Chess.com"]
[Date "2020.03.03"]
[Round "6"]
[White "ChessLover0108"]
[Black "Hrant_ChessMood"]
[Result "0-1"]
[WhiteElo "2765"]
[BlackElo "2945"]
[TimeControl "180+1"]
[EndTime "14:04:51 PST"]
[Termination "Hrant_ChessMood won on time"]

1. d4 {[%clk 0:03:00.9]} 1... Nf6 {[%clk 0:01:34.9]} 2. c4 {[%clk 0:02:58.3]}
2... g6 {[%clk 0:01:34.2]} 3. Nc3 {[%clk 0:02:58]} 3... Bg7 {[%clk 0:01:34.6]}
4. e4 {[%clk 0:02:58.4]} 4... d6 {[%clk 0:01:34.7]} 5. Be2 {[%clk 0:02:58.9]}
5... O-O {[%clk 0:01:34.7]} 6. Be3 {[%clk 0:02:59.5]} 6... Na6 {[%clk
0:01:29.9]} 7. Nf3 {[%clk 0:02:55.2]} 7... c5 {[%clk 0:01:30.2]} 8. d5 {[%clk
0:02:44.3]} 8... e6 {[%clk 0:01:28.7]} 9. O-O {[%clk 0:02:42.3]} 9... Re8 {[%clk
0:01:29]} 10. Nd2 {[%clk 0:02:41.6]} 10... exd5 {[%clk 0:01:28.9]} 11. cxd5
{[%clk 0:02:42.5]} 11... Nc7 {[%clk 0:01:28.7]} 12. a4 {[%clk 0:02:36.7]} 12...
a6 {[%clk 0:01:21.1]} 13. Qc2 {[%clk 0:02:29.2]} 13... Rb8 {[%clk 0:01:21]} 14.
a5 {[%clk 0:02:28.6]} 14... Bd7 {[%clk 0:01:20.3]} 15. Rfe1 {[%clk 0:01:28.1]}
15... Nb5 {[%clk 0:01:15.8]} 16. Nxb5 {[%clk 0:01:17.6]} 16... Bxb5 {[%clk
0:01:15.3]} 17. Bxb5 {[%clk 0:01:16]} 17... axb5 {[%clk 0:01:16.2]} 18. f3
{[%clk 0:01:13.9]} 18... Ra8 {[%clk 0:01:12.5]} 19. b4 {[%clk 0:01:04.3]} 19...
Nxd5 {[%clk 0:01:05.2]} 20. exd5 {[%clk 0:00:44.7]} 20... Rxe3 {[%clk
0:00:46.9]} 21. Rxe3 {[%clk 0:00:45.6]} 21... Bxa1 {[%clk 0:00:46.5]} 22. Nb3
{[%clk 0:00:45.9]} 22... Qf6 {[%clk 0:00:30.6]} 23. Qd1 {[%clk 0:00:27.2]} 23...
Be5 {[%clk 0:00:22.1]} 24. Re4 {[%clk 0:00:13.6]} 24... c4 {[%clk 0:00:19]} 25.
Nd4 {[%clk 0:00:14]} 25... Bxd4+ {[%clk 0:00:15.8]} 26. Qxd4 {[%clk 0:00:14.3]}
26... Qxd4+ {[%clk 0:00:15.1]} 27. Rxd4 {[%clk 0:00:15.2]} 27... b6 {[%clk
0:00:12.1]} 28. axb6 {[%clk 0:00:11.3]} 28... Rb8 {[%clk 0:00:12.6]} 29. Rd2
{[%clk 0:00:07.9]} 29... Rxb6 {[%clk 0:00:12.2]} 30. Ra2 {[%clk 0:00:08.2]}
30... Rb8 {[%clk 0:00:07.5]} 31. Kf2 {[%clk 0:00:08.4]} 31... Kf8 {[%clk
0:00:05.5]} 32. Ra7 {[%clk 0:00:03.4]} 32... Rc8 {[%clk 0:00:03.5]} 33. Ke2
{[%clk 0:00:04]} 33... c3 {[%clk 0:00:03.5]} 34. Kd1 {[%clk 0:00:04.7]} 34...
Rc4 {[%clk 0:00:03.7]} 35. Kc2 {[%clk 0:00:04.9]} 35... Rxb4 {[%clk 0:00:03.9]}
36. Kxc3 {[%clk 0:00:05.4]} 36... Rc4+ {[%clk 0:00:04]} 37. Kd3 {[%clk
0:00:05.4]} 37... Rc5 {[%clk 0:00:04.4]} 38. Ke4 {[%clk 0:00:02]} 38... Ke8
{[%clk 0:00:03]} 39. Ra8+ {[%clk 0:00:01.7]} 39... Ke7 {[%clk 0:00:03.9]} 40.
Ra7+ {[%clk 0:00:02.6]} 40... Kf6 {[%clk 0:00:03.8]} 41. Rd7 {[%clk 0:00:03.1]}
41... Rc4+ {[%clk 0:00:04.6]} 42. Kd3 {[%clk 0:00:03.7]} 42... Ke5 {[%clk
0:00:05.1]} 43. Rxf7 {[%clk 0:00:04.1]} 43... Kxd5 {[%clk 0:00:04.6]} 44. Rxh7
{[%clk 0:00:04.6]} 44... b4 {[%clk 0:00:04.7]} 45. Rb7 {[%clk 0:00:04.5]} 45...
Rc3+ {[%clk 0:00:05.1]} 46. Kd2 {[%clk 0:00:04.8]} 46... Kc4 {[%clk 0:00:05.1]}
47. h4 {[%clk 0:00:02.7]} 47... d5 {[%clk 0:00:05]} 48. g4 {[%clk 0:00:01.3]}
48... Rxf3 {[%clk 0:00:04.2]} 49. Ke2 {[%clk 0:00:01.9]} 49... Rh3 {[%clk
0:00:03.3]} 50. Rh7 {[%clk 0:00:02.5]} 50... b3 {[%clk 0:00:02.4]} 51. Kd2
{[%clk 0:00:03]} 51... b2 {[%clk 0:00:02.4]} 52. Kc2 {[%clk 0:00:03.2]} 52...
Rh2+ {[%clk 0:00:03]} 53. Kb1 {[%clk 0:00:03.1]} 53... d4 {[%clk 0:00:03.9]} 54.
h5 {[%clk 0:00:02.4]} 54... gxh5 {[%clk 0:00:04.8]} 55. Rxh5 {[%clk 0:00:03.3]}
55... Rg2 {[%clk 0:00:04.4]} 56. Rh7 {[%clk 0:00:02.3]} 56... d3 {[%clk
0:00:04.6]} 57. Rc7+ {[%clk 0:00:02.4]} 57... Kb3 {[%clk 0:00:05]} 58. Rb7+
{[%clk 0:00:01.6]} 58... Kc3 {[%clk 0:00:05.5]} 59. Rc7+ {[%clk 0:00:02.1]}
59... Kd4 {[%clk 0:00:05.8]} 60. Rd7+ {[%clk 0:00:02.2]} 60... Ke3 {[%clk
0:00:05.9]} 61. Re7+ {[%clk 0:00:02.7]} 61... Kd2 {[%clk 0:00:04.3]} 62. Rg7
{[%clk 0:00:02.9]} 62... Ke3 {[%clk 0:00:03.3]} 63. Re7+ {[%clk 0:00:02.9]}
63... Kf4 {[%clk 0:00:03.7]} 64. Rd7 {[%clk 0:00:02.8]} 64... d2 {[%clk
0:00:03.7]} 65. g5 {[%clk 0:00:02]} 65... Kxg5 {[%clk 0:00:02.8]} 66. Rg7+
{[%clk 0:00:01.3]} 66... Kf4 {[%clk 0:00:03.2]} 67. Rxg2 {[%clk 0:00:02.2]}
67... d1=Q+ {[%clk 0:00:03]} 68. Kxb2 {[%clk 0:00:03.1]} 68... Qd4+ {[%clk
0:00:03.4]} 69. Kb1 {[%clk 0:00:01]} 69... Qd1+ {[%clk 0:00:02.6]} 0-1

[Event "*** Titled Tuesday Blitz"]
[Site "Chess.com"]
[Date "2020.03.03"]
[Round "6"]
[White "Alexander_Moskalenko"]
[Black "dusanacns"]
[Result "0-1"]
[WhiteElo "2832"]
[BlackElo "2665"]
[TimeControl "180+1"]
[EndTime "14:08:19 PST"]
[Termination "dusanacns won on time"]

1. d4 {[%clk 0:01:42]} 1... Nf6 {[%clk 0:02:59.2]} 2. Bg5 {[%clk 0:01:40.1]}
2... Ne4 {[%clk 0:02:49.8]} 3. h4 {[%clk 0:01:39.5]} 3... h6 {[%clk 0:02:43.5]}
4. Bc1 {[%clk 0:01:38.4]} 4... d6 {[%clk 0:02:37.6]} 5. f3 {[%clk 0:01:38.3]}
5... Ng3 {[%clk 0:02:32.2]} 6. Rh2 {[%clk 0:01:38.8]} 6... Nd7 {[%clk
0:02:27.3]} 7. Kf2 {[%clk 0:01:37.8]} 7... Nxf1 {[%clk 0:02:26]} 8. Qxf1 {[%clk
0:01:38.3]} 8... e5 {[%clk 0:02:26.9]} 9. e3 {[%clk 0:01:35.4]} 9... Be7 {[%clk
0:02:26.6]} 10. g3 {[%clk 0:01:33.5]} 10... O-O {[%clk 0:02:26.3]} 11. Ne2
{[%clk 0:01:29.2]} 11... f5 {[%clk 0:02:26]} 12. Nbc3 {[%clk 0:01:22.3]} 12...
e4 {[%clk 0:02:23.8]} 13. Nf4 {[%clk 0:00:53.1]} 13... Nf6 {[%clk 0:02:23.9]}
14. Ncd5 {[%clk 0:00:49.3]} 14... Nxd5 {[%clk 0:01:57.7]} 15. Nxd5 {[%clk
0:00:50.2]} 15... c6 {[%clk 0:01:58.2]} 16. Nxe7+ {[%clk 0:00:49.4]} 16... Qxe7
{[%clk 0:01:59.1]} 17. f4 {[%clk 0:00:50.3]} 17... Be6 {[%clk 0:01:53.3]} 18. b3
{[%clk 0:00:48.4]} 18... b5 {[%clk 0:01:52.8]} 19. a4 {[%clk 0:00:42.8]} 19...
b4 {[%clk 0:01:41.5]} 20. Bb2 {[%clk 0:00:37.7]} 20... a5 {[%clk 0:01:41.2]} 21.
Qe2 {[%clk 0:00:32.8]} 21... Rfb8 {[%clk 0:01:31.1]} 22. Kg1 {[%clk 0:00:32.9]}
22... Qe8 {[%clk 0:01:27.9]} 23. Rd1 {[%clk 0:00:26]} 23... Rb7 {[%clk
0:01:19.6]} 24. Qf1 {[%clk 0:00:23.6]} 24... Bf7 {[%clk 0:01:16.1]} 25. Rdd2
{[%clk 0:00:22.7]} 25... Bh5 {[%clk 0:01:12.3]} 26. Qc4+ {[%clk 0:00:22.4]}
26... d5 {[%clk 0:01:11.4]} 27. Qf1 {[%clk 0:00:21.4]} 27... Bg4 {[%clk
0:01:11.1]} 28. Kf2 {[%clk 0:00:21.3]} 28... Rc8 {[%clk 0:01:08.9]} 29. Ke1
{[%clk 0:00:21.6]} 29... Rbc7 {[%clk 0:01:06.4]} 30. Qa6 {[%clk 0:00:21.2]}
30... Ra8 {[%clk 0:00:54.7]} 31. Qb6 {[%clk 0:00:20.9]} 31... Rcc8 {[%clk
0:00:49]} 32. Qc5 {[%clk 0:00:21.1]} 32... Qh5 {[%clk 0:00:48.6]} 33. Rdf2
{[%clk 0:00:21]} 33... Bf3 {[%clk 0:00:48.3]} 34. Rf1 {[%clk 0:00:21]} 34... Qg4
{[%clk 0:00:47.4]} 35. Rg1 {[%clk 0:00:21.5]} 35... Kh7 {[%clk 0:00:47.1]} 36.
Kd2 {[%clk 0:00:19.2]} 36... Qh5 {[%clk 0:00:43.9]} 37. Kc1 {[%clk 0:00:19.2]}
37... Bg4 {[%clk 0:00:42.9]} 38. Kb1 {[%clk 0:00:19.4]} 38... Qf7 {[%clk
0:00:43.5]} 39. Bc1 {[%clk 0:00:19.8]} 39... Qd7 {[%clk 0:00:43.9]} 40. Kb2
{[%clk 0:00:20.1]} 40... Rc7 {[%clk 0:00:43.7]} 41. Bd2 {[%clk 0:00:20.6]} 41...
Rb7 {[%clk 0:00:43.9]} 42. Rc1 {[%clk 0:00:21]} 42... Rbb8 {[%clk 0:00:43.1]}
43. Rhh1 {[%clk 0:00:20.8]} 43... Bf3 {[%clk 0:00:43]} 44. Rh2 {[%clk
0:00:21.2]} 44... Bg4 {[%clk 0:00:43.4]} 45. Ka1 {[%clk 0:00:20.8]} 45... Ra6
{[%clk 0:00:43.5]} 46. Be1 {[%clk 0:00:20.5]} 46... Qb7 {[%clk 0:00:43]} 47. Bd2
{[%clk 0:00:20.6]} 47... Re8 {[%clk 0:00:42.6]} 48. Kb2 {[%clk 0:00:20.5]} 48...
Re6 {[%clk 0:00:43]} 49. Rg1 {[%clk 0:00:20.9]} 49... Rg6 {[%clk 0:00:42.8]} 50.
Be1 {[%clk 0:00:19.9]} 50... Qd7 {[%clk 0:00:36.2]} 51. Kc1 {[%clk 0:00:20.2]}
51... Qf7 {[%clk 0:00:36.4]} 52. Bd2 {[%clk 0:00:20.4]} 52... Bf3 {[%clk
0:00:36.4]} 53. Kb2 {[%clk 0:00:20.7]} 53... Rg4 {[%clk 0:00:36.4]} 54. h5
{[%clk 0:00:17.4]} 54... Qd7 {[%clk 0:00:33.2]} 55. Qf8 {[%clk 0:00:15.3]} 55...
Ra7 {[%clk 0:00:28.9]} 56. Qc5 {[%clk 0:00:14.8]} 56... Ra6 {[%clk 0:00:28.7]}
57. Kc1 {[%clk 0:00:15.2]} 57... Qa7 {[%clk 0:00:27.6]} 58. Qxa7 {[%clk
0:00:14.2]} 58... Rxa7 {[%clk 0:00:28.5]} 59. c3 {[%clk 0:00:12.9]} 59... bxc3
{[%clk 0:00:22.4]} 60. Bxc3 {[%clk 0:00:13.8]} 60... Kg8 {[%clk 0:00:22.7]} 61.
Kb2 {[%clk 0:00:13.2]} 61... Kf7 {[%clk 0:00:23.1]} 62. Ka3 {[%clk 0:00:13.8]}
62... Ke6 {[%clk 0:00:23]} 63. b4 {[%clk 0:00:14.3]} 63... axb4+ {[%clk
0:00:23.9]} 64. Bxb4 {[%clk 0:00:15.2]} 64... Ra6 {[%clk 0:00:18.8]} 65. Bc5
{[%clk 0:00:14.7]} 65... g6 {[%clk 0:00:18.2]} 66. hxg6 {[%clk 0:00:14.5]} 66...
Rxg6 {[%clk 0:00:19.1]} 67. Rb2 {[%clk 0:00:13.7]} 67... h5 {[%clk 0:00:18.3]}
68. Rbb1 {[%clk 0:00:12.8]} 68... Rg8 {[%clk 0:00:17.8]} 69. Rb7 {[%clk
0:00:11.1]} 69... Rga8 {[%clk 0:00:17]} 70. Rb4 {[%clk 0:00:09.2]} 70... Be2
{[%clk 0:00:15.7]} 71. Rh1 {[%clk 0:00:08.3]} 71... Kf6 {[%clk 0:00:13.2]} 72.
Rh2 {[%clk 0:00:03.5]} 72... Bf3 {[%clk 0:00:09]} 73. Bb6 {[%clk 0:00:03.3]}
73... Bd1 {[%clk 0:00:06.3]} 74. a5 {[%clk 0:00:03.6]} 74... Ke6 {[%clk
0:00:04.1]} 75. Rh1 {[%clk 0:00:03.9]} 75... Bf3 {[%clk 0:00:03.9]} 76. Rh3
{[%clk 0:00:03.6]} 76... Kd7 {[%clk 0:00:04.1]} 77. Rb2 {[%clk 0:00:03.3]} 77...
Bg4 {[%clk 0:00:04.1]} 78. Rhh2 {[%clk 0:00:02.8]} 78... Bd1 {[%clk 0:00:04.6]}
79. Kb4 {[%clk 0:00:03.3]} 79... Bg4 {[%clk 0:00:04.3]} 80. Rhd2 {[%clk
0:00:03.8]} 80... Kd6 {[%clk 0:00:04.5]} 81. Rbc2 {[%clk 0:00:04.3]} 81... Rb8
{[%clk 0:00:04.5]} 82. Rc3 {[%clk 0:00:04.4]} 82... Rbxb6+ {[%clk 0:00:03.4]}
83. axb6 {[%clk 0:00:05.3]} 83... Rxb6+ {[%clk 0:00:04.3]} 84. Ka3 {[%clk
0:00:05.8]} 84... Ra6+ {[%clk 0:00:04.6]} 85. Kb2 {[%clk 0:00:05.4]} 85... Rb6+
{[%clk 0:00:05.5]} 86. Rb3 {[%clk 0:00:05.9]} 86... Ra6 {[%clk 0:00:05.7]} 87.
Rc2 {[%clk 0:00:05.3]} 87... Bd1 {[%clk 0:00:04.3]} 88. Rh2 {[%clk 0:00:05.7]}
88... Bxb3 {[%clk 0:00:04.3]} 89. Kxb3 {[%clk 0:00:06.6]} 89... Rb6+ {[%clk
0:00:05]} 90. Kc3 {[%clk 0:00:06.2]} 90... Ra6 {[%clk 0:00:05]} 91. Rxh5 {[%clk
0:00:06.8]} 91... Ra3+ {[%clk 0:00:05.4]} 92. Kd2 {[%clk 0:00:07.3]} 92... Ra2+
{[%clk 0:00:05.9]} 93. Ke1 {[%clk 0:00:07.8]} 93... Rg2 {[%clk 0:00:06.1]} 94.
Rxf5 {[%clk 0:00:07]} 94... Rxg3 {[%clk 0:00:06.7]} 95. Kf2 {[%clk 0:00:07.6]}
95... Rf3+ {[%clk 0:00:07]} 96. Ke2 {[%clk 0:00:08.2]} 96... Rh3 {[%clk
0:00:07.5]} 97. Rf6+ {[%clk 0:00:08.5]} 97... Kd7 {[%clk 0:00:07.8]} 98. Rg6
{[%clk 0:00:08.9]} 98... Rh2+ {[%clk 0:00:08]} 99. Ke1 {[%clk 0:00:09.5]} 99...
Rh3 {[%clk 0:00:08.4]} 100. Kf2 {[%clk 0:00:10]} 100... Rh2+ {[%clk 0:00:08.9]}
101. Rg2 {[%clk 0:00:10.5]} 101... Rh3 {[%clk 0:00:08.2]} 102. Ke2 {[%clk
0:00:10.8]} 102... Rf3 {[%clk 0:00:07.9]} 103. Rf2 {[%clk 0:00:10.8]} 103... Rg3
{[%clk 0:00:08]} 104. Rh2 {[%clk 0:00:10.6]} 104... Rg4 {[%clk 0:00:07.6]} 105.
Kd2 {[%clk 0:00:09.3]} 105... Rg3 {[%clk 0:00:07.3]} 106. Rh7+ {[%clk
0:00:09.4]} 106... Kd6 {[%clk 0:00:07.6]} 107. Rh6+ {[%clk 0:00:09.7]} 107...
Kd7 {[%clk 0:00:08.2]} 108. Rh2 {[%clk 0:00:09.3]} 108... Rf3 {[%clk 0:00:08.3]}
109. Rg2 {[%clk 0:00:08.6]} 109... Kd6 {[%clk 0:00:08.2]} 110. Ke2 {[%clk
0:00:08.6]} 110... Kd7 {[%clk 0:00:07.8]} 111. Rf2 {[%clk 0:00:08.6]} 111... Rh3
{[%clk 0:00:07.8]} 112. f5 {[%clk 0:00:08.6]} 112... Ke7 {[%clk 0:00:08.1]} 113.
Rg2 {[%clk 0:00:07.9]} 113... Rh6 {[%clk 0:00:07.1]} 114. Kd2 {[%clk 0:00:05.6]}
114... Kf6 {[%clk 0:00:07]} 115. Rf2 {[%clk 0:00:05.4]} 115... Rh5 {[%clk
0:00:06.8]} 116. Ke1 {[%clk 0:00:04.8]} 116... Rxf5 {[%clk 0:00:07.1]} 117. Rc2
{[%clk 0:00:05.4]} 117... Ke7 {[%clk 0:00:06]} 118. Rxc6 {[%clk 0:00:05.4]}
118... Kd7 {[%clk 0:00:06.9]} 119. Ra6 {[%clk 0:00:04.7]} 119... Rg5 {[%clk
0:00:06.6]} 120. Kd2 {[%clk 0:00:04.8]} 120... Rg2+ {[%clk 0:00:06.8]} 121. Ke1
{[%clk 0:00:05.1]} 121... Rg3 {[%clk 0:00:07]} 122. Ra7+ {[%clk 0:00:04.6]}
122... Kd6 {[%clk 0:00:07.2]} 123. Kf2 {[%clk 0:00:05.5]} 123... Rf3+ {[%clk
0:00:07.1]} 124. Ke2 {[%clk 0:00:06]} 124... Rh3 {[%clk 0:00:07.5]} 125. Ra6+
{[%clk 0:00:06.5]} 125... Kd7 {[%clk 0:00:08]} 126. Rg6 {[%clk 0:00:07.4]}
126... Ke7 {[%clk 0:00:07.7]} 127. Kd2 {[%clk 0:00:07.3]} 127... Rh2+ {[%clk
0:00:07.6]} 128. Kc3 {[%clk 0:00:07.6]} 128... Re2 {[%clk 0:00:07.7]} 129. Rg3
{[%clk 0:00:08.2]} 129... Kd6 {[%clk 0:00:07.5]} 130. Kb4 {[%clk 0:00:08.7]}
130... Rc2 {[%clk 0:00:07.4]} 131. Rg6+ {[%clk 0:00:07.3]} 131... Kd7 {[%clk
0:00:07.8]} 132. Kb5 {[%clk 0:00:07.7]} 132... Rc3 {[%clk 0:00:07.8]} 133. Rg3
{[%clk 0:00:07.2]} 133... Kd6 {[%clk 0:00:07.9]} 134. Rg6+ {[%clk 0:00:07.1]}
134... Kd7 {[%clk 0:00:08.4]} 135. Rh6 {[%clk 0:00:07.4]} 135... Ke7 {[%clk
0:00:08.6]} 136. Rh5 {[%clk 0:00:07]} 136... Kd6 {[%clk 0:00:08.4]} 137. Rh3
{[%clk 0:00:07.2]} 137... Rb3+ {[%clk 0:00:08.3]} 138. Ka4 {[%clk 0:00:06.8]}
138... Rb1 {[%clk 0:00:08]} 139. Rh6+ {[%clk 0:00:06]} 139... Kd7 {[%clk
0:00:08.3]} 140. Rh5 {[%clk 0:00:06.8]} 140... Ke6 {[%clk 0:00:08.5]} 141. Re5+
{[%clk 0:00:06.8]} 141... Kd6 {[%clk 0:00:08.8]} 142. Rg5 {[%clk 0:00:07.3]}
142... Re1 {[%clk 0:00:08.9]} 143. Rg6+ {[%clk 0:00:06.7]} 143... Kc7 {[%clk
0:00:09.1]} 144. Kb5 {[%clk 0:00:07.5]} 144... Rc1 {[%clk 0:00:08.6]} 145. Rf6
{[%clk 0:00:07.4]} 145... Kd7 {[%clk 0:00:08.7]} 146. Rb6 {[%clk 0:00:06.8]}
146... Rc2 {[%clk 0:00:06.9]} 147. Ra6 {[%clk 0:00:06.5]} 147... Rc1 {[%clk
0:00:06.6]} 148. Kb6 {[%clk 0:00:05.3]} 148... Rc3 {[%clk 0:00:05.1]} 149. Ra7+
{[%clk 0:00:04.5]} 149... Kd6 {[%clk 0:00:05.1]} 150. Kb5 {[%clk 0:00:05.4]}
150... Rb3+ {[%clk 0:00:04.8]} 151. Ka4 {[%clk 0:00:05.7]} 151... Rxe3 {[%clk
0:00:05.7]} 152. Ra6+ {[%clk 0:00:06.2]} 152... Kd7 {[%clk 0:00:05.9]} 153. Kb5
{[%clk 0:00:07.1]} 153... Rc3 {[%clk 0:00:05.8]} 154. Ra7+ {[%clk 0:00:06.8]}
154... Ke6 {[%clk 0:00:06.3]} 155. Ra8 {[%clk 0:00:06.5]} 155... e3 {[%clk
0:00:05.8]} 156. Re8+ {[%clk 0:00:06.4]} 156... Kd6 {[%clk 0:00:06.2]} 157. Re5
{[%clk 0:00:06.2]} 157... Rb3+ {[%clk 0:00:05.7]} 158. Ka4 {[%clk 0:00:05.9]}
158... Rd3 {[%clk 0:00:05.9]} 159. Kb5 {[%clk 0:00:06]} 159... Rxd4 {[%clk
0:00:05.6]} 160. Rxe3 {[%clk 0:00:06.5]} 160... Rc4 {[%clk 0:00:05.8]} 161. Re8
{[%clk 0:00:06]} 161... Rc7 {[%clk 0:00:05.6]} 162. Kb4 {[%clk 0:00:05.5]}
162... d4 {[%clk 0:00:04.9]} 163. Kb3 {[%clk 0:00:03.9]} 163... Kd5 {[%clk
0:00:04.3]} 164. Kb2 {[%clk 0:00:03.8]} 164... d3 {[%clk 0:00:03.9]} 165. Rd8+
{[%clk 0:00:02.2]} 165... Ke4 {[%clk 0:00:04.2]} 166. Re8+ {[%clk 0:00:02.7]}
166... Kd4 {[%clk 0:00:04.2]} 167. Kb3 {[%clk 0:00:02.5]} 167... d2 {[%clk
0:00:03.7]} 168. Kb2 {[%clk 0:00:03]} 168... Kd3 {[%clk 0:00:02.9]} 169. Rd8+
{[%clk 0:00:02.8]} 169... Ke2 {[%clk 0:00:03.5]} 170. Re8+ {[%clk 0:00:03.7]}
170... Kd1 {[%clk 0:00:04.1]} 171. Re6 {[%clk 0:00:03.3]} 171... Rc4 {[%clk
0:00:03.5]} 172. Kb3 {[%clk 0:00:03.1]} 172... Rc8 {[%clk 0:00:03.5]} 173. Kb2
{[%clk 0:00:03.4]} 173... Rb8+ {[%clk 0:00:03.8]} 174. Ka2 {[%clk 0:00:03.9]}
174... Rb5 {[%clk 0:00:02.8]} 175. Re8 {[%clk 0:00:03.5]} 175... Kc2 {[%clk
0:00:02.9]} 176. Rc8+ {[%clk 0:00:03.4]} 176... Kd3 {[%clk 0:00:03]} 177. Rd8+
{[%clk 0:00:03]} 177... Kc3 {[%clk 0:00:03.4]} 178. Rc8+ {[%clk 0:00:03]} 178...
Kd4 {[%clk 0:00:03.6]} 179. Rb8 {[%clk 0:00:02.2]} 179... Rxb8 {[%clk
0:00:03.4]} 180. Ka3 {[%clk 0:00:02.5]} 180... d1=Q {[%clk 0:00:03.1]} 0-1

[Event "*** Titled Tuesday Blitz"]
[Site "Chess.com"]
[Date "2020.03.03"]
[Round "7"]
[White "VeraNebolsina"]
[Black "NM2019"]
[Result "1-0"]
[WhiteElo "2341"]
[BlackElo "2029"]
[TimeControl "180+1"]
[EndTime "14:11:29 PST"]
[Termination "VeraNebolsina won by resignation"]

1. e4 {[%clk 0:03:00.9]} 1... c5 {[%clk 0:02:59.9]} 2. Nc3 {[%clk 0:03:00.2]}
2... a6 {[%clk 0:02:59.7]} 3. g3 {[%clk 0:02:58.2]} 3... b5 {[%clk 0:03:00.2]}
4. Bg2 {[%clk 0:02:58.1]} 4... Bb7 {[%clk 0:03:00.9]} 5. Nh3 {[%clk 0:02:50.2]}
5... f5 {[%clk 0:03:01]} 6. O-O {[%clk 0:02:42.3]} 6... fxe4 {[%clk 0:02:59.2]}
7. Nxe4 {[%clk 0:02:37.8]} 7... Qb6 {[%clk 0:02:49.4]} 8. Qh5+ {[%clk
0:02:15.4]} 8... g6 {[%clk 0:02:44.9]} 9. Qe5 {[%clk 0:02:12.6]} 9... d5 {[%clk
0:02:03]} 10. Qxh8 {[%clk 0:02:07.2]} 10... Qe6 {[%clk 0:01:40]} 11. Nxc5 {[%clk
0:02:02.6]} 1-0

[Event "*** Titled Tuesday Blitz"]
[Site "Chess.com"]
[Date "2020.03.03"]
[Round "7"]
[White "secretsuperstar7"]
[Black "Dale"]
[Result "1-0"]
[WhiteElo "2223"]
[BlackElo "1940"]
[TimeControl "180+1"]
[EndTime "14:12:17 PST"]
[Termination "secretsuperstar7 won by checkmate"]

1. d4 {[%clk 0:02:59.5]} 1... d6 {[%clk 0:02:59.9]} 2. c4 {[%clk 0:02:54]} 2...
c6 {[%clk 0:03:00.8]} 3. e4 {[%clk 0:02:47.8]} 3... g6 {[%clk 0:03:01.7]} 4. Nc3
{[%clk 0:02:46.3]} 4... Qb6 {[%clk 0:03:01.1]} 5. Nf3 {[%clk 0:02:36.3]} 5...
Bg4 {[%clk 0:03:00.6]} 6. Be2 {[%clk 0:02:23.8]} 6... Bg7 {[%clk 0:03:00.5]} 7.
Be3 {[%clk 0:02:15.5]} 7... Qxb2 {[%clk 0:02:59.4]} 8. Na4 {[%clk 0:02:13.7]}
8... Qa3 {[%clk 0:02:58.3]} 9. Rb1 {[%clk 0:02:01.2]} 9... Bxf3 {[%clk
0:02:45.8]} 10. gxf3 {[%clk 0:01:56.7]} 10... Qxa2 {[%clk 0:02:31.5]} 11. Ra1
{[%clk 0:01:47.7]} 11... Qxa1 {[%clk 0:02:31.1]} 12. Qxa1 {[%clk 0:01:46.9]}
12... c5 {[%clk 0:02:28.8]} 13. Nb6 {[%clk 0:01:43.2]} 13... Nc6 {[%clk
0:02:23.4]} 14. Nxa8 {[%clk 0:01:40.1]} 14... cxd4 {[%clk 0:02:23.7]} 15. Bd2
{[%clk 0:01:34.5]} 15... d3 {[%clk 0:02:23.7]} 16. Qxg7 {[%clk 0:01:32.2]} 16...
Nf6 {[%clk 0:02:23.7]} 17. Qxh8+ {[%clk 0:01:31.3]} 17... Kd7 {[%clk 0:02:24.1]}
18. Bxd3 {[%clk 0:01:29.5]} 18... h5 {[%clk 0:02:24.3]} 19. Ke2 {[%clk 0:01:24]}
19... h4 {[%clk 0:02:24.4]} 20. Be3 {[%clk 0:01:23.1]} 20... h3 {[%clk
0:02:24.1]} 21. Rb1 {[%clk 0:01:22.1]} 21... Ne5 {[%clk 0:02:23.7]} 22. Rxb7+
{[%clk 0:01:20.5]} 22... Ke6 {[%clk 0:02:22]} 23. Qxh3+ {[%clk 0:01:16.7]} 23...
Nfg4 {[%clk 0:02:20.5]} 24. fxg4 {[%clk 0:01:16.6]} 24... a5 {[%clk 0:02:19.5]}
25. g5+ {[%clk 0:01:16.4]} 25... f5 {[%clk 0:02:17.6]} 26. exf5+ {[%clk
0:01:15.1]} 26... gxf5 {[%clk 0:02:16.3]} 27. Qxf5# {[%clk 0:01:14.8]} 1-0

[Event "*** Titled Tuesday Blitz"]
[Site "Chess.com"]
[Date "2020.03.03"]
[Round "7"]
[White "MikeSailer"]
[Black "ChessPlayer202202"]
[Result "0-1"]
[WhiteElo "2117"]
[BlackElo "2291"]
[TimeControl "180+1"]
[EndTime "14:12:21 PST"]
[Termination "ChessPlayer202202 won by resignation"]

1. Nf3 {[%clk 0:03:00.9]} 1... Nf6 {[%clk 0:02:59.5]} 2. b4 {[%clk 0:03:00.7]}
2... e6 {[%clk 0:02:49.3]} 3. a3 {[%clk 0:02:58.8]} 3... c5 {[%clk 0:02:47.9]}
4. bxc5 {[%clk 0:02:58.4]} 4... Bxc5 {[%clk 0:02:48.8]} 5. e3 {[%clk 0:02:58.4]}
5... O-O {[%clk 0:02:44.1]} 6. Bb2 {[%clk 0:02:58.7]} 6... b6 {[%clk 0:02:20.6]}
7. Be2 {[%clk 0:02:57.9]} 7... Ba6 {[%clk 0:02:20.1]} 8. O-O {[%clk 0:02:49.8]}
8... Bxe2 {[%clk 0:02:17]} 9. Qxe2 {[%clk 0:02:49.4]} 9... d5 {[%clk 0:02:17.5]}
10. d4 {[%clk 0:02:48.9]} 10... Bd6 {[%clk 0:02:13.7]} 11. Nbd2 {[%clk 0:02:49]}
11... Nbd7 {[%clk 0:02:12.7]} 12. c4 {[%clk 0:02:49]} 12... Rc8 {[%clk
0:02:07.1]} 13. Rfc1 {[%clk 0:02:45.8]} 13... Qe7 {[%clk 0:02:06.4]} 14. a4
{[%clk 0:02:43.2]} 14... a5 {[%clk 0:01:51.9]} 15. cxd5 {[%clk 0:02:26.8]} 15...
exd5 {[%clk 0:01:46.4]} 16. Qb5 {[%clk 0:02:15]} 16... h6 {[%clk 0:01:24.7]} 17.
h3 {[%clk 0:02:06.7]} 17... Qe6 {[%clk 0:01:18.4]} 18. Rc6 {[%clk 0:01:53.9]}
18... Rxc6 {[%clk 0:01:17.8]} 19. Qxc6 {[%clk 0:01:53.5]} 19... Bh2+ {[%clk
0:01:17.5]} 0-1

[Event "*** Titled Tuesday Blitz"]
[Site "Chess.com"]
[Date "2020.03.03"]
[Round "7"]
[White "mbojan"]
[Black "Bad4life"]
[Result "1-0"]
[WhiteElo "2678"]
[BlackElo "2302"]
[TimeControl "180+1"]
[EndTime "14:12:26 PST"]
[Termination "mbojan won on time"]

1. e4 {[%clk 0:03:00.9]} 1... c5 {[%clk 0:02:56.6]} 2. Nf3 {[%clk 0:03:01]} 2...
g6 {[%clk 0:02:56.2]} 3. d4 {[%clk 0:03:00.8]} 3... cxd4 {[%clk 0:02:50.4]} 4.
Nxd4 {[%clk 0:03:01.7]} 4... Nc6 {[%clk 0:02:49.1]} 5. Nc3 {[%clk 0:03:01]} 5...
Bg7 {[%clk 0:02:48.2]} 6. Be3 {[%clk 0:03:00.8]} 6... Nf6 {[%clk 0:02:48.6]} 7.
Nxc6 {[%clk 0:03:01.1]} 7... bxc6 {[%clk 0:02:47.7]} 8. e5 {[%clk 0:03:01.2]}
8... Ng8 {[%clk 0:02:47.5]} 9. f4 {[%clk 0:03:01.2]} 9... f6 {[%clk 0:02:46.9]}
10. exf6 {[%clk 0:03:00.8]} 10... Nxf6 {[%clk 0:02:47.8]} 11. Qd2 {[%clk
0:03:00.2]} 11... O-O {[%clk 0:02:47]} 12. Be2 {[%clk 0:03:00.1]} 12... Qc7
{[%clk 0:02:47]} 13. O-O {[%clk 0:02:59.8]} 13... Rb8 {[%clk 0:02:26.7]} 14. b3
{[%clk 0:02:56.2]} 1-0